bitfinex/quotes_ETHUSD_20260203
["timestamp","ask_amount","ask_price","bid_price","bid_amount"]
[1770143258569,0.1035,2139.2,2137.2,12.98661599]
[1770143258765,0.0011,2139.2,2137.4,12.98661599]
[1770143259946,3.31026618,2140.3,2138.2,12.98661599]
[1770143259947,0.0011,2140.3,2138.2,12.98661599]
[1770143260146,0.0011,2140.3,2138.7,12.98661599]
[1770143260978,0.0011,2140.3,2138.7,13.96761599]
[1770143262449,0.0011,2140.3,2139.2,12.98661599]
[1770143262654,0.0011,2141.4,2140.2,12.98661599]
[1770143262855,0.0011,2141.4,2139.3,1.06973421]
[1770143262856,0.0011,2141.4,2140.3,2.24611237]
[1770143263159,0.0011,2141.4,2139.8,12.98661599]
[1770143263882,0.0011,2140.3,2139.4,0.981]
[1770143264253,0.0011,2140.3,2138.6,12.98661599]
[1770143265093,0.1024,2140.0,2138.3,2.24611237]
[1770143265293,0.2335703,2139.7,2137.1,12.98661599]
[1770143265510,0.2335703,2139.7,2136.7,10.72517353]
[1770143265511,0.2335703,2139.9,2136.7,0.001]
[1770143265512,0.2335703,2139.3,2136.7,0.001]
[1770143265788,0.2335703,2139.3,2135.9,0.001]
[1770143265789,0.76805907,2137.1,2135.9,0.001]
[1770143265991,0.76805907,2137.1,2135.2,0.87365482]
[1770143265992,0.003,2136.7,2135.2,0.87365482]
[1770143266190,0.1024,2137.0,2134.7,12.98661599]
[1770143266191,0.1024,2136.8,2134.7,12.98661599]
[1770143266357,0.1024,2136.8,2134.0,9.47450767]
[1770143266358,0.981,2138.6,2134.1,9.47450767]
[1770143266554,1e-08,2137.0,2135.3,13.0]
[1770143266788,53.2326347,2138.7,2135.3,13.0]
[1770143266789,0.18432,2138.4,2135.3,13.0]
[1770143266980,58.60898168,2138.7,2134.2,13.0]
[1770143267182,0.46538243,2138.3,2134.7,13.0]
[1770143267401,4.26104332,2138.6,2135.3,13.0]
[1770143267553,0.0011,2141.2,2135.3,13.0]
[1770143267554,9.47451465,2138.5,2135.9,13.0]
[1770143267753,9.47451465,2138.5,2136.7,13.0]
[1770143267964,0.46538243,2139.3,2136.9,12.98661599]
[1770143268163,0.93721888,2140.2,2137.1,12.98661599]
[1770143268463,0.0011,2141.2,2138.5,12.98661599]
[1770143268676,0.0011,2141.2,2138.7,12.98661599]
[1770143269000,0.0011,2141.2,2138.9,12.98661599]
[1770143269001,0.56358668,2141.1,2138.9,12.98661599]
[1770143269155,0.56358668,2141.1,2138.6,0.981]
[1770143269374,0.56358668,2141.1,2138.6,12.98661599]
[1770143269685,0.56358668,2141.1,2138.7,0.981]
[1770143270012,0.56358668,2141.1,2138.8,1.3967616]
[1770143270013,0.1024,2141.0,2138.8,1.3967616]
[1770143270305,0.56358668,2141.1,2138.8,14.38337759]
[1770143270513,0.56358668,2141.1,2139.0,12.9887172]
[1770143270817,5.37634698,2143.1,2139.0,12.9887172]
[1770143270818,0.00799018,2143.2,2140.2,12.9887172]
[1770143270972,0.00799018,2143.2,2140.6,12.9887172]
[1770143271680,0.00799018,2143.2,2140.8,12.9887172]
[1770143271907,0.00799018,2143.2,2141.0,12.9887172]
[1770143272798,0.00799018,2143.2,2141.6,12.9887172]
[1770143272998,0.00799018,2143.2,2141.8,12.9887172]
[1770143273216,0.00799018,2143.2,2141.9,13.9697172]
[1770143273411,0.00799018,2143.2,2141.9,12.9887172]
[1770143273639,0.0011,2143.9,2141.9,12.9887172]
[1770143274734,0.0011,2143.9,2141.7,1.29887172]
[1770143275033,0.0011,2143.9,2141.5,0.981]
[1770143275207,0.0011,2143.9,2141.1,13.97578628]
[1770143275931,0.1024,2143.7,2141.1,13.97578628]
[1770143276130,10.09140133,2143.8,2141.1,13.97578628]
[1770143276131,0.1024,2143.5,2141.1,13.97578628]
[1770143276436,10.09140133,2143.8,2141.2,1.39757863]
[1770143276437,0.3359703,2143.7,2141.2,1.39757863]
[1770143276800,10.42737163,2143.7,2141.2,1.39757863]
[1770143277146,0.1024,2142.8,2141.0,0.001]
[1770143277303,0.1024,2142.6,2140.1,0.98]
[1770143277502,0.1024,2142.6,2140.8,0.001]
[1770143277742,0.1024,2142.6,2140.1,0.98]
[1770143277915,0.2335703,2141.5,2139.9,0.001]
[1770143278239,0.2335703,2142.0,2139.1,14.41658994]
[1770143278402,0.1024,2141.9,2139.3,12.99478628]
[1770143278603,0.1024,2141.5,2139.3,12.99478628]
[1770143279841,10.08840133,2142.8,2139.3,12.99478628]
[1770143280013,0.1024,2142.7,2139.3,12.99478628]
[1770143280212,1.12148013,2142.7,2139.5,12.99478628]
[1770143280621,11.20988146,2142.7,2139.5,12.99478628]
[1770143280920,1.01908013,2142.7,2139.5,12.99478628]
[1770143281244,52.695,2143.6,2140.2,0.2335703]
[1770143281454,52.695,2143.6,2139.6,0.98]
[1770143281455,0.0011,2143.9,2140.5,12.99478628]
[1770143281746,0.0011,2143.9,2141.5,12.99478628]
[1770143281906,0.0011,2143.9,2142.0,13.22835658]
[1770143282111,0.0011,2144.8,2142.0,13.22835658]
[1770143282112,0.0011,2144.8,2143.1,12.99478628]
[1770143282332,0.00799018,2145.5,2143.3,12.99478628]
[1770143282616,0.0011,2146.1,2143.2,0.98]
[1770143282617,0.0011,2146.1,2143.4,13.22835658]
[1770143283016,52.695,2147.8,2144.7,12.99478628]
[1770143283240,10.42378083,2148.3,2144.4,0.2335703]
[1770143283241,10.42378083,2148.3,2144.9,12.99478628]
[1770143283439,0.98,2148.9,2144.9,12.99478628]
[1770143283960,0.98,2148.9,2145.0,13.97478628]
[1770143283961,10.42488083,2148.3,2145.0,13.97478628]
[1770143284112,0.24253579,2148.4,2145.0,13.97478628]
[1770143284320,10.42488083,2148.3,2145.0,12.99478628]
[1770143284745,0.24257566,2148.2,2145.0,12.99478628]
[1770143284930,0.18432,2148.2,2145.0,12.99478628]
[1770143285116,52.695,2148.6,2144.8,1.29947863]
[1770143285117,0.2335703,2146.5,2144.8,1.29947863]
[1770143285313,0.2335703,2146.7,2142.8,1.685]
[1770143285314,0.1024,2145.6,2143.4,0.98]
[1770143285517,10.47488083,2147.0,2143.5,14.39226491]
[1770143285518,0.1024,2146.9,2143.5,14.39226491]
[1770143285717,0.1024,2146.3,2143.5,14.39226491]
[1770143285926,0.1024,2146.1,2143.7,12.99478628]
[1770143286131,0.2335703,2147.0,2143.9,12.99478628]
[1770143286614,0.3359703,2147.1,2143.9,12.99478628]
[1770143287016,52.695,2147.5,2143.9,14.16088256]
[1770143287216,9.37531547,2148.6,2144.9,12.99478628]
[1770143287458,9.37531547,2148.6,2145.1,12.99478628]
[1770143287773,0.1024,2147.9,2145.1,12.99478628]
[1770143287918,0.1024,2147.0,2145.1,12.99478628]
[1770143288119,0.1024,2147.0,2144.3,13.97378628]
[1770143288520,0.1024,2147.0,2143.8,1.39747863]
[1770143288521,9.47771547,2147.0,2143.8,1.39747863]
[1770143288829,0.1024,2146.2,2143.8,14.39226491]
[1770143289149,0.1024,2146.0,2143.8,14.39226491]
[1770143289370,0.2335703,2146.4,2143.9,14.43401277]
[1770143289551,0.2335703,2146.4,2143.5,0.46288446]
[1770143289552,0.2335703,2145.4,2143.5,0.46288446]
[1770143289755,0.3359703,2146.3,2143.5,0.46288446]
[1770143290248,0.3359703,2146.3,2144.1,0.001]
[1770143290991,0.3359703,2146.3,2143.5,0.46288446]
[1770143290992,0.1024,2145.4,2143.5,0.46288446]
[1770143291270,0.37887851,2145.9,2143.0,0.001]
[1770143291484,0.1024,2145.2,2143.0,0.001]
[1770143291773,0.2335703,2145.5,2143.0,12.99578628]
[1770143291976,0.9937514,2145.9,2143.0,12.99578628]
[1770143291977,0.2335703,2144.9,2143.0,12.99578628]
[1770143292185,0.9937514,2145.9,2143.0,12.99578628]
[1770143292186,0.2335703,2145.5,2143.0,12.99578628]
[1770143292467,0.1024,2145.8,2143.0,0.001]
[1770143292636,0.1024,2145.3,2143.0,0.001]
[1770143292839,0.1024,2145.3,2143.0,12.99578628]
[1770143293053,0.1024,2145.1,2143.1,14.29436491]
[1770143293858,9.37431547,2146.3,2143.1,14.29436491]
[1770143293859,0.1024,2146.1,2143.1,14.29436491]
[1770143294167,0.2335703,2146.2,2143.1,14.29436491]
[1770143294168,0.1024,2146.2,2143.1,14.29436491]
[1770143294406,0.2335703,2146.1,2143.1,14.29436491]
[1770143294580,0.3359703,2145.3,2143.1,14.29436491]
[1770143294739,0.3359703,2145.3,2143.0,0.001]
[1770143295140,0.73202634,2145.4,2143.0,12.99578628]
[1770143295389,9.37431547,2146.3,2143.0,12.99578628]
[1770143295390,0.1024,2146.2,2143.0,12.99578628]
[1770143295540,0.1024,2146.2,2142.0,13.09718628]
[1770143295541,9.37431547,2145.7,2142.0,13.09718628]
[1770143295740,9.37431547,2145.7,2141.9,5.23462065]
[1770143295741,2.50829675,2143.0,2141.9,12.99478628]
[1770143296054,0.7319869,2146.0,2141.9,12.99478628]
[1770143296055,0.1024,2144.7,2141.9,12.99478628]
[1770143296254,0.18432,2145.5,2141.0,0.979]
[1770143296255,0.1024,2144.3,2142.0,14.29426491]
[1770143296459,0.2335703,2144.0,2142.0,14.29426491]
[1770143296861,0.2335703,2143.9,2142.0,14.29426491]
[1770143297066,1.16466199,2146.6,2142.0,14.29426491]
[1770143297244,0.2335703,2144.4,2142.2,12.99478628]
[1770143297572,0.1024,2145.3,2142.2,12.99478628]
[1770143297739,0.1024,2145.0,2142.2,12.99478628]
[1770143297941,0.1024,2144.8,2142.4,12.99478628]
[1770143298172,0.1024,2144.6,2142.4,12.99478628]
[1770143298574,10.32198702,2146.2,2142.4,12.99478628]
[1770143298792,0.1024,2145.4,2142.4,12.99478628]
[1770143298995,0.62214959,2145.7,2142.4,12.99478628]
[1770143299201,1.05024973,2146.0,2142.6,12.99478628]
[1770143299441,1.05024973,2146.0,2142.7,0.07021486]
[1770143299705,1.05024973,2146.0,2143.1,12.99478628]
[1770143300397,9.41588364,2145.9,2143.1,12.99478628]
[1770143300577,0.1024,2145.8,2143.1,12.99478628]
[1770143300754,0.1024,2145.4,2143.3,12.97684294]
[1770143301076,9.51828364,2145.4,2143.3,12.97684294]
[1770143301667,0.2335703,2145.3,2143.3,12.97684294]
[1770143301982,9.41588364,2144.9,2143.3,12.97684294]
[1770143302177,9.41588364,2145.3,2143.4,14.4044751]
[1770143302380,9.41588364,2145.7,2143.6,12.97684294]
[1770143302578,0.1024,2145.6,2143.6,12.97684294]
[1770143302980,9.41588364,2145.2,2143.6,12.97684294]
[1770143303351,0.2335703,2145.1,2143.6,12.97684294]
[1770143303566,0.96494539,2145.1,2143.7,1.39558429]
[1770143303766,0.1024,2145.6,2143.7,14.37242723]
[1770143304994,0.2335703,2145.5,2143.7,14.37242723]
[1770143305292,9.41588364,2145.7,2143.7,14.37242723]
[1770143305293,0.2335703,2145.3,2143.7,14.37242723]
[1770143305593,0.3359703,2145.0,2143.7,14.37242723]
[1770143305764,9.41588364,2145.1,2143.7,14.37242723]
[1770143305968,0.3359703,2145.0,2143.7,14.37242723]
[1770143306462,55.7638358,2146.9,2143.7,14.37242723]
[1770143306463,0.1024,2145.4,2143.7,14.37242723]
[1770143306676,0.3359703,2144.9,2143.7,1.39558429]
[1770143306857,9.41588364,2145.5,2143.1,12.97684294]
[1770143307061,0.1024,2145.4,2143.1,12.97684294]
[1770143307262,10.46613337,2146.0,2143.1,14.14336539]
[1770143307469,9.41588364,2145.5,2143.3,12.97684294]
[1770143307691,0.1024,2145.9,2143.3,12.97684294]
[1770143308056,10.46613337,2146.0,2143.3,12.97684294]
[1770143308380,1.05024973,2146.0,2143.5,12.97684294]
[1770143308591,1.05024973,2146.0,2143.7,12.97684294]
[1770143308799,1.05024973,2146.0,2143.9,12.97684294]
[1770143309084,9.41588364,2146.6,2144.1,12.97684294]
[1770143309289,9.41588364,2146.6,2144.3,12.97684294]
[1770143309515,9.41588364,2146.6,2144.5,12.97684294]
[1770143309720,9.41588364,2146.6,2144.7,12.97684294]
[1770143311527,0.0011,2146.9,2144.7,12.97684294]
[1770143311728,0.0011,2146.9,2144.9,12.97684294]
[1770143312843,0.1024,2146.8,2144.9,12.97684294]
[1770143313143,9.41588364,2146.6,2145.0,14.27452723]
[1770143313492,9.41588364,2146.1,2144.6,0.978]
[1770143313731,9.41588364,2146.1,2144.6,13.95484294]
[1770143313895,0.0011,2146.9,2144.6,13.95484294]
[1770143313896,9.41588364,2146.6,2144.6,13.95484294]
[1770143314228,9.41588364,2146.6,2144.8,12.97684294]
[1770143314430,0.2335703,2146.5,2144.8,12.97684294]
[1770143314643,0.1024,2146.2,2144.8,12.97684294]
[1770143315229,9.41588364,2146.1,2144.8,12.97684294]
[1770143315405,9.41588364,2146.6,2144.8,12.97684294]
[1770143315610,9.41588364,2146.6,2145.0,12.97684294]
[1770143315809,0.0011,2146.4,2145.0,12.97684294]
[1770143316715,0.0011,2146.6,2145.0,12.97684294]
[1770143317130,9.41698364,2146.6,2145.0,12.97684294]
[1770143317305,9.41698364,2146.6,2145.2,12.97684294]
[1770143318294,0.0011,2146.6,2145.2,12.97684294]
[1770143318932,9.40824572,2146.5,2145.2,12.97684294]
[1770143319305,0.0011,2146.6,2145.2,12.97684294]
[1770143319707,0.2346703,2146.6,2145.1,1.44140757]
[1770143319907,0.2346703,2146.6,2144.6,0.978]
[1770143319908,9.40824572,2146.3,2144.6,13.95484294]
[1770143320439,0.1024,2145.7,2144.0,12.97684294]
[1770143320607,0.1024,2145.1,2143.6,1.52184481]
[1770143320802,0.1024,2144.9,2143.6,1.52184481]
[1770143321005,0.1024,2144.5,2143.3,0.001]
[1770143321432,0.1024,2144.5,2142.2,0.001]
[1770143321433,0.1024,2143.9,2142.2,0.001]
[1770143321701,0.1024,2143.9,2142.2,0.979]
[1770143321946,0.62265773,2143.8,2142.6,12.97784294]
[1770143322157,0.1024,2144.2,2142.6,12.97784294]
[1770143322512,0.3359703,2144.5,2142.6,12.97784294]
[1770143322866,1.33374893,2144.5,2142.7,1.29778429]
[1770143323162,0.1024,2144.4,2142.7,14.27462723]
[1770143323315,0.1024,2144.5,2142.7,14.27462723]
[1770143323515,0.3359703,2145.0,2142.7,14.27462723]
[1770143324955,0.3359703,2144.5,2142.7,14.27462723]
[1770143325155,0.3359703,2144.5,2142.8,1.42756272]
[1770143325156,0.3359703,2144.0,2142.8,1.42756272]
[1770143325367,0.1024,2144.0,2142.6,0.001]
[1770143325522,0.1024,2143.4,2141.5,0.001]
[1770143325722,1.60065773,2143.9,2141.5,12.97784294]
[1770143325957,0.46699039,2143.3,2141.7,12.97684294]
[1770143326249,0.3359703,2144.7,2141.9,12.97684294]
[1770143326412,0.1024,2144.2,2141.9,12.97684294]
[1770143327012,9.40824572,2144.3,2141.9,12.97684294]
[1770143327013,0.2335703,2144.1,2141.9,12.97684294]
[1770143327213,0.1024,2143.7,2142.0,14.37232723]
[1770143327447,0.2335703,2143.6,2142.0,14.37232723]
[1770143327652,0.1024,2143.5,2142.0,14.37232723]
[1770143327818,0.1024,2143.5,2142.1,1.43723272]
[1770143328455,0.3359703,2143.7,2142.1,1.43723272]
[1770143328664,0.9641816,2144.2,2142.1,14.41407566]
[1770143328949,0.9641816,2144.2,2142.9,0.001]
[1770143328950,0.1024,2144.2,2142.9,0.001]
[1770143330128,0.1024,2144.0,2142.9,0.001]
[1770143330760,0.3359703,2144.2,2142.9,0.001]
[1770143330930,0.2335703,2144.2,2142.9,0.001]
[1770143331134,0.1024,2144.1,2142.9,0.001]
[1770143331340,9.40824572,2143.8,2142.6,0.001]
[1770143331544,0.1024,2143.9,2142.6,0.001]
[1770143331741,0.2335703,2143.8,2142.6,0.001]
[1770143332458,0.1024,2143.7,2142.6,0.001]
[1770143333045,0.2335703,2144.1,2142.6,0.001]
[1770143333243,0.2335703,2143.7,2142.6,0.001]
[1770143334141,0.2335703,2144.0,2142.6,0.001]
[1770143334342,0.1024,2143.9,2142.6,0.001]
[1770143334660,9.40824572,2144.3,2142.6,0.001]
[1770143334839,0.1024,2144.2,2142.6,0.001]
[1770143335253,0.1024,2144.2,2142.6,12.13749955]
[1770143335458,0.1024,2144.2,2142.7,1.21374995]
[1770143335459,0.1024,2144.0,2142.7,1.21374995]
[1770143335786,9.40824572,2144.3,2142.7,13.3502495]
[1770143335940,9.40824572,2144.8,2142.7,13.3502495]
[1770143336370,0.1024,2144.7,2142.7,13.3502495]
[1770143336572,1.05346457,2144.7,2142.9,12.13649955]
[1770143336777,0.1024,2144.7,2142.9,13.11549955]
[1770143336935,9.40824572,2145.0,2142.9,13.11549955]
[1770143337377,9.40824572,2144.5,2142.9,13.11549955]
[1770143337541,0.2335703,2144.3,2142.9,13.11549955]
[1770143337871,0.2335703,2144.3,2143.0,1.44506245]
[1770143340664,9.40824572,2145.0,2143.0,13.581562]
[1770143340665,0.1024,2144.9,2143.0,13.581562]
[1770143340868,0.1024,2144.9,2143.0,1.44506245]
[1770143340869,9.40824572,2144.1,2143.0,1.44506245]
[1770143341074,9.40824572,2144.1,2142.6,0.001]
[1770143341075,9.40824572,2143.6,2142.6,0.001]
[1770143341384,9.40824572,2143.6,2142.0,12.13649955]
[1770143341385,9.40824572,2143.1,2142.0,12.13649955]
[1770143341682,0.1024,2143.4,2142.0,12.13649955]
[1770143341894,0.2335703,2143.5,2142.1,1.21364995]
[1770143342106,9.40824572,2143.6,2142.1,13.3501495]
[1770143342385,9.40824572,2144.1,2142.8,0.001]
[1770143342679,0.0011,2144.1,2142.8,13.11649955]
[1770143342885,0.0011,2144.1,2143.0,12.13649955]
[1770143343045,9.40824572,2145.1,2143.0,12.13649955]
[1770143343046,0.0011,2144.3,2143.0,12.13649955]
[1770143343248,0.0011,2144.3,2142.8,0.98]
[1770143343249,9.40824572,2144.0,2142.8,0.001]
[1770143343547,9.40824572,2144.0,2141.8,12.13749955]
[1770143343548,0.3359703,2143.4,2141.8,12.13749955]
[1770143344080,0.31196647,2143.4,2141.8,12.13749955]
[1770143344248,0.1024,2143.4,2141.8,12.13749955]
[1770143344448,9.40824572,2143.5,2141.8,12.13749955]
[1770143344670,0.1024,2143.8,2141.9,13.3503495]
[1770143344878,9.40824572,2143.5,2141.9,13.3503495]
[1770143345051,0.1024,2143.8,2141.9,13.3503495]
[1770143345394,0.72505773,2143.8,2141.9,13.3503495]
[1770143345679,9.40824572,2143.3,2141.9,13.3503495]
[1770143345853,0.2335703,2143.5,2142.0,1.33513495]
[1770143346057,0.3359703,2143.8,2142.0,13.4716345]
[1770143346286,9.40824572,2144.0,2142.0,13.4716345]
[1770143346647,0.0011,2144.3,2142.0,13.4716345]
[1770143346849,0.0011,2144.3,2142.2,12.13649955]
[1770143348117,0.0011,2144.3,2142.4,12.13649955]
[1770143348412,0.0011,2144.3,2142.6,12.13649955]
[1770143348971,0.2346703,2144.3,2142.6,12.13649955]
[1770143349189,0.2335703,2143.9,2142.6,12.13649955]
[1770143349388,0.0011,2144.3,2142.6,13.3501495]
[1770143349762,0.2335703,2143.8,2142.6,1.21364995]
[1770143350073,0.2335703,2143.8,2142.2,12.13649955]
[1770143350492,9.40824572,2143.9,2142.2,12.13649955]
[1770143350827,9.40824572,2143.9,2141.8,0.001]
[1770143350828,0.3359703,2143.3,2141.8,0.001]
[1770143350965,1.55930641,2143.2,2141.8,0.001]
[1770143351165,0.75959788,2143.1,2141.8,0.001]
[1770143351404,0.1024,2143.1,2141.8,0.001]
[1770143352094,9.40824572,2143.4,2141.8,12.13749955]
[1770143352800,0.62265773,2143.8,2142.0,12.13649955]
[1770143353112,0.2335703,2143.7,2142.0,12.13649955]
[1770143353478,1.55930641,2143.8,2142.0,12.13649955]
[1770143353479,0.3359703,2143.8,2142.0,12.13649955]
[1770143353671,0.3359703,2143.8,2142.2,12.13649955]
[1770143353879,1.89527671,2143.8,2142.2,12.13649955]
[1770143354193,1.55930641,2143.9,2142.2,12.13649955]
[1770143354395,0.0011,2144.3,2142.2,12.13649955]
[1770143354917,1.55930641,2145.0,2142.7,12.13649955]
[1770143355090,2.04858293,2145.2,2142.9,12.13649955]
[1770143355291,0.48927652,2145.2,2142.9,12.13649955]
[1770143355486,0.48927652,2145.2,2142.8,3.56281821]
[1770143355487,9.40824572,2144.4,2142.8,0.979]
[1770143355785,9.40824572,2144.4,2142.2,12.13649955]
[1770143355786,1.66170641,2144.0,2142.2,12.13649955]
[1770143356001,9.51064572,2143.6,2142.2,12.13649955]
[1770143356200,0.1024,2143.4,2142.2,12.13649955]
[1770143356402,0.1024,2142.8,2141.8,0.001]
[1770143356623,1.55930641,2142.7,2141.5,0.001]
[1770143356817,1.55930641,2142.7,2140.0,1.65929277]
[1770143356818,1.55930641,2142.7,2138.8,2.5111785]
[1770143356819,0.2335703,2141.0,2138.8,2.5111785]
[1770143357024,0.2335703,2141.0,2137.9,8.29646385]
[1770143357025,0.1024,2139.7,2137.8,12.13649955]
[1770143357342,0.1024,2139.7,2137.1,0.979]
[1770143357343,9.40824572,2138.8,2137.1,12.13649955]
[1770143357490,1.87429035,2138.7,2137.2,12.13649955]
[1770143357688,1.56804206,2139.1,2137.2,13.63478766]
[1770143357921,0.93339766,2139.0,2137.2,13.63478766]
[1770143358419,3.09892777,2139.7,2137.8,12.13649955]
[1770143358420,1.56804206,2139.6,2137.8,12.13649955]
[1770143358741,1.56804206,2139.9,2138.0,12.13649955]
[1770143359019,1.56804206,2139.1,2138.0,12.13649955]
[1770143359188,1.56804206,2139.1,2136.7,0.00802309]
[1770143359189,1.56804206,2138.8,2137.3,12.13649955]
[1770143359389,1.56804206,2138.7,2137.3,12.13649955]
[1770143359591,0.38932039,2138.6,2137.3,12.13649955]
[1770143359793,1.56804206,2139.1,2137.3,12.13649955]
[1770143360199,1.56804206,2139.0,2137.3,12.13649955]
[1770143360419,2.32516188,2139.2,2137.3,12.13649955]
[1770143360420,0.3359703,2139.2,2137.3,12.13649955]
[1770143360588,1.56804206,2138.9,2137.3,12.13649955]
[1770143360792,9.40824572,2138.8,2137.3,12.13649955]
[1770143360988,1.12098581,2138.7,2137.3,12.13649955]
[1770143361190,1.12098581,2138.7,2136.3,11.74479418]
[1770143361191,0.2335703,2138.0,2136.3,11.74479418]
[1770143361392,9.40824572,2138.2,2136.3,11.74479418]
[1770143361628,0.1024,2138.5,2136.3,11.74479418]
[1770143361788,0.1024,2138.5,2136.5,11.74479418]
[1770143361993,9.40824572,2138.6,2136.5,11.74479418]
[1770143362419,0.3359703,2138.5,2136.5,11.74479418]
[1770143362636,1.12098581,2138.7,2136.5,11.74479418]
[1770143362920,2.32516188,2139.1,2136.4,1.27237942]
[1770143362921,0.1024,2139.1,2136.7,11.74479418]
[1770143363089,0.1024,2139.1,2136.6,1.30171736]
[1770143363090,1.33256177,2139.3,2136.9,11.74479418]
[1770143363294,1.33256177,2139.3,2137.1,11.74479418]
[1770143363599,1.33256177,2139.3,2137.3,11.74479418]
[1770143364296,9.40824572,2140.7,2137.7,11.74479418]
[1770143364501,9.40824572,2140.7,2137.9,11.74479418]
[1770143364893,10.97628778,2141.2,2138.2,0.1024]
[1770143365098,9.40824572,2141.2,2138.3,12.72479418]
[1770143365592,9.40824572,2140.7,2138.3,12.72479418]
[1770143365856,0.94082457,2140.6,2138.5,11.74479418]
[1770143366807,0.35923324,2141.5,2138.8,12.53468254]
[1770143367150,9.40824572,2141.1,2138.8,12.53468254]
[1770143367659,0.1024,2140.8,2138.8,12.53468254]
[1770143367865,0.2335703,2140.5,2138.8,12.53468254]
[1770143368134,0.1024,2140.8,2138.8,12.53468254]
[1770143368337,0.1024,2140.8,2139.0,12.53468254]
[1770143368537,9.40824572,2141.1,2139.0,12.53468254]
[1770143368735,0.0011,2140.4,2139.0,12.53468254]
[1770143370421,0.0011,2140.4,2139.2,12.53468254]
[1770143370622,0.0011,2140.4,2139.3,13.51468254]
[1770143370944,0.0011,2140.4,2139.4,13.88615079]
[1770143372244,0.0011,2140.4,2139.4,12.53468254]
[1770143372443,0.0011,2140.6,2139.4,12.53468254]
[1770143373394,1.02042963,2140.5,2138.8,12.53468254]
[1770143373663,1.02042963,2140.5,2138.4,1.27247942]
[1770143373664,0.3359703,2140.1,2138.4,1.27247942]
[1770143373867,0.3359703,2140.1,2138.1,12.53468254]
[1770143373868,9.40824572,2139.7,2138.1,12.53468254]
[1770143374166,3.36813941,2140.4,2138.1,12.53468254]
[1770143374167,0.1024,2140.0,2138.1,12.53468254]
[1770143374339,0.3359703,2140.4,2138.1,12.53468254]
[1770143374676,9.74421602,2140.2,2138.1,12.53468254]
[1770143374958,0.1024,2140.0,2138.1,12.53468254]
[1770143375828,1.56804206,2140.4,2138.1,12.53468254]
[1770143375829,0.1024,2140.4,2138.1,12.53468254]
[1770143376027,0.1024,2140.2,2138.3,12.53468254]
[1770143376958,0.1024,2140.0,2138.3,12.53468254]
[1770143377268,0.1024,2140.3,2138.3,12.53468254]
[1770143377561,0.1024,2140.1,2138.3,12.53468254]
[1770143377763,0.91970452,2140.0,2138.4,1.37881508]
[1770143377926,0.91970452,2140.0,2138.4,13.91349762]
[1770143378735,0.91970452,2140.0,2138.4,12.53468254]
[1770143378736,0.1024,2139.7,2138.4,12.53468254]
[1770143378934,0.1024,2139.6,2137.9,0.98]
[1770143379146,0.1024,2139.2,2137.9,0.98]
[1770143379347,0.1024,2139.2,2137.8,12.53468254]
[1770143379348,9.46825403,2138.8,2137.0,12.53468254]
[1770143379548,2.59014658,2139.2,2136.9,1.67079696]
[1770143379549,1.56804206,2139.2,2137.3,12.53468254]
[1770143379868,0.92206982,2139.1,2137.3,12.53468254]
[1770143380034,0.92206982,2139.0,2137.3,12.53468254]
[1770143380235,0.92206982,2138.9,2137.3,12.53468254]
[1770143380432,0.92279022,2138.8,2137.4,4.926]
[1770143380633,0.92279022,2138.8,2137.2,0.98]
[1770143380634,9.46825403,2139.1,2137.5,14.28075079]
[1770143380862,0.92265906,2139.0,2137.5,14.28075079]
[1770143381066,0.92265906,2138.9,2137.5,14.28075079]
[1770143381336,0.92265906,2138.9,2137.2,0.98]
[1770143381337,1.56804206,2139.4,2137.7,12.53468254]
[1770143381550,0.92299431,2139.3,2137.7,12.53468254]
[1770143381763,0.92299431,2139.2,2137.7,12.53468254]
[1770143382059,0.92299431,2139.1,2137.7,12.53468254]
[1770143382261,11.79341591,2139.6,2137.2,0.98]
[1770143382262,0.92299431,2139.0,2137.8,13.9309583]
[1770143382449,1.56804206,2139.5,2137.8,13.9309583]
[1770143382653,0.92435086,2139.4,2137.8,13.9309583]
[1770143382958,0.92435086,2139.3,2137.8,13.9309583]
[1770143383260,1.56804206,2139.9,2137.8,13.9309583]
[1770143383559,0.92597917,2139.8,2138.0,12.53468254]
[1770143383738,1.56804206,2140.0,2138.2,12.53468254]
[1770143383739,0.92597917,2139.7,2138.2,12.53468254]
[1770143383939,0.92597917,2139.6,2138.2,12.53468254]
[1770143384141,0.92771108,2139.5,2138.2,12.53468254]
[1770143384386,1.56804206,2139.9,2138.2,12.53468254]
[1770143384590,2.88507761,2139.8,2138.3,13.88625079]
[1770143384864,0.92771516,2139.7,2138.3,13.88625079]
[1770143385181,1.56804206,2139.4,2138.3,13.88625079]
[1770143385338,0.92771516,2139.3,2138.3,13.88625079]
[1770143385540,11.03629609,2138.9,2137.8,12.53468254]
[1770143385840,0.50859779,2139.5,2137.5,0.001]
[1770143385841,1.56804206,2138.2,2137.5,0.001]
[1770143386036,0.80263184,2137.8,2136.8,13.81352993]
[1770143386340,1.56804206,2138.0,2137.0,12.53468254]
[1770143386651,2.32516188,2138.2,2137.0,12.53468254]
[1770143386652,1.56804206,2138.2,2137.0,12.53468254]
[1770143386834,2.32516188,2138.3,2137.0,12.53468254]
[1770143386835,1.56804206,2138.1,2137.0,12.53468254]
[1770143387840,1.56804206,2138.3,2137.0,12.53468254]
[1770143388039,1.56804206,2138.4,2136.9,12.53468254]
[1770143388838,1.56804206,2138.5,2136.9,12.53468254]
[1770143389059,1.56804206,2138.4,2136.9,12.53468254]
[1770143389790,3.09892777,2139.5,2137.3,12.6048974]
[1770143389941,3.09892777,2140.3,2137.5,12.53468254]
[1770143390142,1.25803818,2140.2,2137.7,12.53468254]
[1770143390337,1.25803818,2140.2,2137.8,12.53468254]
[1770143390535,0.0011,2140.2,2137.8,12.53468254]
[1770143391951,0.0011,2140.2,2137.8,13.70406853]
[1770143392355,0.0011,2140.2,2138.3,12.44695681]
[1770143392547,0.0011,2140.2,2137.9,14.39425403]
[1770143392548,0.0011,2140.2,2138.5,12.44695681]
[1770143392871,2.60222777,2140.9,2138.5,12.44695681]
[1770143393071,0.32024275,2141.2,2139.8,12.44695681]
[1770143393270,5.46343128,2141.5,2139.9,13.42795681]
[1770143393271,0.0011,2141.5,2139.9,13.42795681]
[1770143393669,0.0011,2141.5,2139.9,12.44695681]
[1770143393966,0.0011,2141.5,2140.0,0.981]
[1770143394766,9.57175403,2141.3,2140.0,0.981]
[1770143394968,0.9571754,2141.2,2140.0,0.981]
[1770143395140,0.1024,2141.1,2139.3,12.58123438]
[1770143395340,0.1024,2141.1,2139.4,0.981]
[1770143395561,0.9571754,2141.2,2139.4,13.56223438]